Workbook

Sheet Ex. Strategy 1- Balanced
A1: Strategy 1 - Balanced:
A2: User instructions:
A3: Enter silica concentration data in columns C (GP=Ground person) and D (OP=Operator) (RED cells).
A4: If there are no data for a day at a site, then enter as "-1" (missing).
A5: If there are no data for a particular site, then "-1" is entered for all three days at the site.
A6: The 95% upper confidence limits are computed at the bottom of the worksheet in Cells M43 (Ground person) and N43 (Operator).
C8: Silica Conc. (mg/m3) | E8: ln(measurement) | G8: No. measurements | I8: Site mean | K8: Degrees of freedom | M8: Within site variance
A9: Site | B9: Day | C9: GP | D9: OP | E9: GP | F9: OP | G9: GP | H9: OP | I9: GP | J9: OP | K9: GP | L9: OP | M9: GP | N9: OP
A10: 1 | B10: 1 | C10: 0.00507 | D10: 0.0132 | E10: =IF(C10>0,LN(C10)," ") -> -5.284414461 | F10: =IF(D10>0,LN(D10)," ") -> -4.327538449 | G10: =COUNT(E10:E12) -> 3 | H10: =COUNT(F10:F12) -> 3 | I10: =IF(G10>0,AVERAGE(E10:E12)," ") -> -5.64484429 | J10: =IF(H10>0,AVERAGE(F10:F12)," ") -> -4.689601706 | K10: =IF(G10>1,G10-1,0) -> 2 | L10: =IF(H10>1,H10-1,0) -> 2 | M10: =IF(K10>0,VAR(E10:E12)," ") -> 0.1253899798 | N10: =IF(L10>0,VAR(F10:F12)," ") -> 0.1545165363 | O10: 1
A11: 1 | B11: 2 | C11: 0.00349 | D11: 0.00605 | E11: -5.657853543 | F11: -5.107697007
A12: 1 | B12: 3 | C12: 0.002498 | D12: 0.00972 | E12: -5.992264867 | F12: -4.633569661
A13: 2 | B13: 1 | C13: 0.012 | D13: 0.0152 | E13: -4.422848629 | F13: -4.186459851 | G13: =COUNT(E13:E15) -> 3 | H13: =COUNT(F13:F15) -> 3 | I13: =IF(G13>0,AVERAGE(E13:E15)," ") -> -5.17243135 | J13: =IF(H13>0,AVERAGE(F13:F15)," ") -> -4.574555581 | K13: =IF(G13>1,G13-1,0) -> 2 | L13: =IF(H13>1,H13-1,0) -> 2 | M13: =IF(K13>0,VAR(E13:E15)," ") -> 0.4784574057 | N13: =IF(L13>0,VAR(F13:F15)," ") -> 0.1663671917
A14: 2 | B14: 2 | C14: 0.00307 | D14: 0.00674 | E14: -5.786077717 | F14: -4.999695354
A15: 2 | B15: 3 | C15: 0.00495 | D15: 0.0107 | E15: -5.308367702 | F15: -4.537511538
A16: 3 | B16: 1 | C16: 0.0101 | D16: 0.0238 | E16: -4.595219855 | F16: -3.738069698 | G16: =COUNT(E16:E18) -> 3 | H16: =COUNT(F16:F18) -> 3 | I16: =IF(G16>0,AVERAGE(E16:E18)," ") -> -4.655634459 | J16: =IF(H16>0,AVERAGE(F16:F18)," ") -> -3.775023084 | K16: =IF(G16>1,G16-1,0) -> 2 | L16: =IF(H16>1,H16-1,0) -> 2 | M16: =IF(K16>0,VAR(E16:E18)," ") -> 0.2261956505 | N16: =IF(L16>0,VAR(F16:F18)," ") -> 0.08335980697
A17: 3 | B17: 2 | C17: 0.00575 | D17: 0.03 | E17: -5.158555424 | F17: -3.506557897
A18: 3 | B18: 3 | C18: 0.0148 | D18: 0.0169 | E18: -4.213128098 | F18: -4.080441657
A19: 4 | B19: 1 | C19: -1 | D19: -1 | G19: =COUNT(E19:E21) -> 0 | H19: =COUNT(F19:F21) -> 0 | I19: =IF(G19>0,AVERAGE(E19:E21)," ") ->  | J19: =IF(H19>0,AVERAGE(F19:F21)," ") ->  | K19: =IF(G19>1,G19-1,0) -> 0 | L19: =IF(H19>1,H19-1,0) -> 0 | M19: =IF(K19>0,VAR(E19:E21)," ") ->  | N19: =IF(L19>0,VAR(F19:F21)," ") -> 
A20: 4 | B20: 2 | C20: -1 | D20: -1
A21: 4 | B21: 3 | C21: -1 | D21: -1
A22: 5 | B22: 1 | C22: -1 | D22: -1 | G22: =COUNT(E22:E24) -> 0 | H22: =COUNT(F22:F24) -> 0 | I22: =IF(G22>0,AVERAGE(E22:E24)," ") ->  | J22: =IF(H22>0,AVERAGE(F22:F24)," ") ->  | K22: =IF(G22>1,G22-1,0) -> 0 | L22: =IF(H22>1,H22-1,0) -> 0 | M22: =IF(K22>0,VAR(E22:E24)," ") ->  | N22: =IF(L22>0,VAR(F22:F24)," ") -> 
A23: 5 | B23: 2 | C23: -1 | D23: -1
A24: 5 | B24: 3 | C24: -1 | D24: -1
M25: GP | N25: OP
A26: Notes: | M26: =SUM(G10:G22) -> 9 | N26: =SUM(H10:H22) -> 9 | O26: No. measurements
A27: Strategy 1 assumes sampling for three days at a minimum of three sites. | L27: nsites | M27: =IF(G22>0,5,IF(G19>0,4,IF(G16>0,3,IF(G13>0,2,IF(G10>0,1,0))))) -> 3 | N27: =IF(H22>0,5,IF(H19>0,4,IF(H16>0,3,IF(H13>0,2,IF(H10>0,1,0))))) -> 3 | O27: No. sites
A28: Worksheet assumes a minimum of three sites. | L28: ndays | M28: =M26/M27 -> 3 | N28: =N26/N27 -> 3 | O28: No. days (balanced if an integer; unbalanced otherwise)
A29: The example data is balanced, but the worksheet can also handle unbalanced data. | M29: =IF(G22>0,1/HARMEAN(G10:G22),IF(G19>0,1/HARMEAN(G10:G19),1/HARMEAN(G10:G16))) -> 0.3333333333 | N29: =IF(H22>0,1/HARMEAN(H10:H22),IF(H19>0,1/HARMEAN(H10:H19),1/HARMEAN(H10:H16))) -> 0.3333333333 | O29: nbar
A30: * These quantitites are defined above equation B-1 in the Best Practices document | M30: =1-M29 -> 0.6666666667 | N30: =1-N29 -> 0.6666666667 | O30: 1-nbar
A31: ** These terms are defined the analysis of example data section of the Best Practices document | M31: =AVERAGE(I10:I22) -> -5.1576367 | N31: =AVERAGE(J10:J22) -> -4.346393457 | O31: Mean of site means, on natural log scale*
A32: Additional comments are in the Unbalanced Data section of the Best Practices document | M32: =STDEV(I10:I22) -> 0.4947708397 | N32: =STDEV(J10:J22) -> 0.4981535705 | O32: Standard deviation of site mean, on natural log scale*
L33: df1 | M33: =M27-1 -> 2 | N33: =N27-1 -> 2 | O33: Degrees of freedom for sites*
L34: astd2ws | M34: =SUMPRODUCT(M10:M22,K10:K22)/SUM(K10:K22) -> 0.276681012 | N34: =SUMPRODUCT(N10:N22,L10:L22)/SUM(L10:L22) -> 0.134747845 | O34: Weighted average of within-site variances*
L35: astdws | M35: =SQRT(M34) -> 0.5260047642 | N35: =SQRT(N34) -> 0.3670801615 | O35: Within-site standard deviation*
L36: df2 | M36: =M26-M27 -> 6 | N36: =N26-N27 -> 6 | O36: Degrees of freedom for days at sites*
M37: =IF(M32*M32-M29*M34>0,SQRT(M32*M32-M29*M34),0) -> 0.3906036096 | N37: =IF(N32*N32-N29*N34>0,SQRT(N32*N32-N29*N34),0) -> 0.4508226164 | O37: Between-site standard deviation*
M38: =M31+0.5*M32*M32+0.5*(M30)*M35*M35 -> -4.943010604 | N38: =N31+0.5*N32*N32+0.5*(N30)*N35*N35 -> -4.177399019 | O38: Term1**
M39: =(M32*TINV(0.1,M33)/SQRT(M27))^2 -> 0.6957422067 | N39: =(N32*TINV(0.1,N33)/SQRT(N27))^2 -> 0.7052882584 | O39: Term2**
M40: =0.5^2*M32^4*(M33/_xlfn.CHISQ.INV.RT(1-0.05,M33)-1)^2 -> 5.125062261 | N40: =0.5^2*N32^4*(N33/_xlfn.CHISQ.INV.RT(1-0.05,N33)-1)^2 -> 5.266665701 | O40: Term3**
M41: =(0.5*(M30))^2*M35^4*(M36/_xlfn.CHISQ.INV.RT(0.05,M36)-1)^2 -> 0.002330962318 | N41: =(0.5*(N30))^2*N35^4*(N36/_xlfn.CHISQ.INV.RT(0.05,N36)-1)^2 -> 0.0005528664019 | O41: Term4**
L42: UCL2 | M42: =M38+SQRT(M39+M40+M41) -> -2.529893236 | N42: =N38+SQRT(N39+N40+N41) -> -1.73352774 | O42: Natural logarithm of upper confidence limit (equation B-1)
L43: UCLM | M43: =EXP(M42) -> 0.07966752544 | N43: =EXP(N42) -> 0.1766600985 | O43: Upper confidence limit (MOVER method) (equation B-2)

Sheet Ex. Strategy 1- Unbalanced
A1: Strategy 1 - Unbalanced:
A2: User instructions:
A3: Enter silica concentration data in columns C (GP=Ground person) and D (OP=Operator) (RED cells).
A4: If there are no data for a day at a site, then enter as "-1" (missing).
A5: If there are no data for a particular site, then "-1" is entered for all three days at the site.
A6: The 95% upper confidence limits are computed at the bottom of the worksheet in Cells M43 (Ground person) and N43 (Operator).
C8: Silica Conc. (mg/m3) | E8: ln(measurement) | G8: No. measurements | I8: Site mean | K8: Degrees of freedom | M8: Within site variance
A9: Site | B9: Day | C9: GP | D9: OP | E9: GP | F9: OP | G9: GP | H9: OP | I9: GP | J9: OP | K9: GP | L9: OP | M9: GP | N9: OP
A10: 1 | B10: 1 | C10: 0.00507 | D10: 0.0132 | E10: =IF(C10>0,LN(C10)," ") -> -5.284414461 | F10: =IF(D10>0,LN(D10)," ") -> -4.327538449 | G10: =COUNT(E10:E12) -> 3 | H10: =COUNT(F10:F12) -> 3 | I10: =IF(G10>0,AVERAGE(E10:E12)," ") -> -5.64484429 | J10: =IF(H10>0,AVERAGE(F10:F12)," ") -> -4.689601706 | K10: =IF(G10>1,G10-1,0) -> 2 | L10: =IF(H10>1,H10-1,0) -> 2 | M10: =IF(K10>0,VAR(E10:E12)," ") -> 0.1253899798 | N10: =IF(L10>0,VAR(F10:F12)," ") -> 0.1545165363
A11: 1 | B11: 2 | C11: 0.00349 | D11: 0.00605 | E11: -5.657853543 | F11: -5.107697007
A12: 1 | B12: 3 | C12: 0.002498 | D12: 0.00972 | E12: -5.992264867 | F12: -4.633569661
A13: 2 | B13: 1 | C13: 0.012 | D13: 0.0152 | E13: -4.422848629 | F13: -4.186459851 | G13: =COUNT(E13:E15) -> 2 | H13: =COUNT(F13:F15) -> 2 | I13: =IF(G13>0,AVERAGE(E13:E15)," ") -> -5.104463173 | J13: =IF(H13>0,AVERAGE(F13:F15)," ") -> -4.593077603 | K13: =IF(G13>1,G13-1,0) -> 1 | L13: =IF(H13>1,H13-1,0) -> 1 | M13: =IF(K13>0,VAR(E13:E15)," ") -> 0.9291967734 | N13: =IF(L13>0,VAR(F13:F15)," ") -> 0.3306759916
A14: 2 | B14: 2 | C14: 0.00307 | D14: 0.00674 | E14: -5.786077717 | F14: -4.999695354
A15: 2 | B15: 3 | C15: -1 | D15: -1
A16: 3 | B16: 1 | C16: 0.0101 | D16: 0.0238 | E16: -4.595219855 | F16: -3.738069698 | G16: =COUNT(E16:E18) -> 3 | H16: =COUNT(F16:F18) -> 3 | I16: =IF(G16>0,AVERAGE(E16:E18)," ") -> -4.655634459 | J16: =IF(H16>0,AVERAGE(F16:F18)," ") -> -3.775023084 | K16: =IF(G16>1,G16-1,0) -> 2 | L16: =IF(H16>1,H16-1,0) -> 2 | M16: =IF(K16>0,VAR(E16:E18)," ") -> 0.2261956505 | N16: =IF(L16>0,VAR(F16:F18)," ") -> 0.08335980697
A17: 3 | B17: 2 | C17: 0.00575 | D17: 0.03 | E17: -5.158555424 | F17: -3.506557897
A18: 3 | B18: 3 | C18: 0.0148 | D18: 0.0169 | E18: -4.213128098 | F18: -4.080441657
A19: 4 | B19: 1 | C19: -1 | D19: -1 | G19: =COUNT(E19:E21) -> 0 | H19: =COUNT(F19:F21) -> 0 | I19: =IF(G19>0,AVERAGE(E19:E21)," ") ->  | J19: =IF(H19>0,AVERAGE(F19:F21)," ") ->  | K19: =IF(G19>1,G19-1,0) -> 0 | L19: =IF(H19>1,H19-1,0) -> 0 | M19: =IF(K19>0,VAR(E19:E21)," ") ->  | N19: =IF(L19>0,VAR(F19:F21)," ") -> 
A20: 4 | B20: 2 | C20: -1 | D20: -1
A21: 4 | B21: 3 | C21: -1 | D21: -1
A22: 5 | B22: 1 | C22: -1 | D22: -1 | G22: =COUNT(E22:E24) -> 0 | H22: =COUNT(F22:F24) -> 0 | I22: =IF(G22>0,AVERAGE(E22:E24)," ") ->  | J22: =IF(H22>0,AVERAGE(F22:F24)," ") ->  | K22: =IF(G22>1,G22-1,0) -> 0 | L22: =IF(H22>1,H22-1,0) -> 0 | M22: =IF(K22>0,VAR(E22:E24)," ") ->  | N22: =IF(L22>0,VAR(F22:F24)," ") -> 
A23: 5 | B23: 2 | C23: -1 | D23: -1
A24: 5 | B24: 3 | C24: -1 | D24: -1
M25: GP | N25: OP
A26: Notes: | M26: =SUM(G10:G22) -> 8 | N26: =SUM(H10:H22) -> 8 | O26: No. measurements
A27: Strategy 1 assumes sampling for three days at a minimum of three sites. | L27: nsites | M27: =IF(G22>0,5,IF(G19>0,4,IF(G16>0,3,IF(G13>0,2,IF(G10>0,1,0))))) -> 3 | N27: =IF(H22>0,5,IF(H19>0,4,IF(H16>0,3,IF(H13>0,2,IF(H10>0,1,0))))) -> 3 | O27: No. sites
A28: The design could become unbalanced if data is missing for some days within a site. | L28: ndays | M28: =M26/M27 -> 2.666666667 | N28: =N26/N27 -> 2.666666667 | O28: No. days (balanced if an integer; unbalanced otherwise)
A29: Worksheet assumes a minimum of three sites. | M29: =IF(G22>0,1/HARMEAN(G10:G22),IF(G19>0,1/HARMEAN(G10:G19),1/HARMEAN(G10:G16))) -> 0.3888888889 | N29: =IF(H22>0,1/HARMEAN(H10:H22),IF(H19>0,1/HARMEAN(H10:H19),1/HARMEAN(H10:H16))) -> 0.3888888889 | O29: nbar
A30: The example data is unbalanced, but the worksheet can also handle balanced data. | M30: =1-M29 -> 0.6111111111 | N30: =1-N29 -> 0.6111111111 | O30: 1-nbar
A31: * These quantitites are defined above equation B-1 in the Best Practices document | M31: =AVERAGE(I10:I22) -> -5.134980641 | N31: =AVERAGE(J10:J22) -> -4.352567464 | O31: Mean of site means, on natural log scale*
A32: ** These terms are defined the analysis of example data section of the Best Practices document | M32: =STDEV(I10:I22) -> 0.4953105182 | N32: =STDEV(J10:J22) -> 0.5024911529 | O32: Standard deviation of site mean, on natural log scale*
A33: Additional comments are in the Unbalanced Data section of the Best Practices document | L33: df1 | M33: =M27-1 -> 2 | N33: =N27-1 -> 2 | O33: Degrees of freedom for sites*
L34: astd2ws | M34: =SUMPRODUCT(M10:M22,K10:K22)/SUM(K10:K22) -> 0.3264736068 | N34: =SUMPRODUCT(N10:N22,L10:L22)/SUM(L10:L22) -> 0.1612857356 | O34: Weighted average of within-site variances*
L35: astdws | M35: =SQRT(M34) -> 0.5713786895 | N35: =SQRT(N34) -> 0.4016039537 | O35: Within-site standard deviation*
L36: df2 | M36: =M26-M27 -> 5 | N36: =N26-N27 -> 5 | O36: Degrees of freedom for days at sites*
M37: =IF(M32*M32-M29*M34>0,SQRT(M32*M32-M29*M34),0) -> 0.3440502162 | N37: =IF(N32*N32-N29*N34>0,SQRT(N32*N32-N29*N34),0) -> 0.4356318723 | O37: Between-site standard deviation*
M38: =M31+0.5*M32*M32+0.5*(M30)*M35*M35 -> -4.912558562 | N38: =N31+0.5*N32*N32+0.5*(N30)*N35*N35 -> -4.177037032 | O38: Term1**
M39: =(M32*TINV(0.1,M33)/SQRT(M27))^2 -> 0.6972608164 | N39: =(N32*TINV(0.1,N33)/SQRT(N27))^2 -> 0.7176240721 | O39: Term2**
M40: =0.5^2*M32^4*(M33/_xlfn.CHISQ.INV.RT(1-0.05,M33)-1)^2 -> 5.147459819 | N40: =0.5^2*N32^4*(N33/_xlfn.CHISQ.INV.RT(1-0.05,N33)-1)^2 -> 5.452509636 | O40: Term3**
M41: =(0.5*(M30))^2*M35^4*(M36/_xlfn.CHISQ.INV.RT(0.05,M36)-1)^2 -> 0.002992201446 | N41: =(0.5*(N30))^2*N35^4*(N36/_xlfn.CHISQ.INV.RT(0.05,N36)-1)^2 -> 0.0007302752681 | O41: Term4**
L42: UCL2 | M42: =M38+SQRT(M39+M40+M41) -> -2.494354096 | N42: =N38+SQRT(N39+N40+N41) -> -1.692914655 | O42: Natural logarithm of upper confidence limit (equation B-1)
L43: UCLM | M43: =EXP(M42) -> 0.08254975335 | N43: =EXP(N42) -> 0.1839824962 | O43: Upper confidence limit (MOVER method) (equation B-2)

Sheet Ex. Strategy 2
A1: Strategy 2:
A2: User instructions:
A3: Enter silica concentration data in columns C (GP=Ground person) and D (OP=Operator) (RED cells).
A4: If there are no data for a particular site, then "-1" is entered.
A5: The 95% upper confidence limits are computed at the bottom of the worksheet in Cells K25 (Ground person) and L25 (Operator).
C7: Silica Conc. (mg/m3) | E7: ln(measurement)
A8: Site | B8: Day | C8: GP | D8: OP | E8: GP | F8: OP
A9: 1 | B9: 1 | C9: 0.005 | D9: 0.0132 | E9: =IF(C9>0,LN(C9)," ") -> -5.298317367 | F9: -4.327538449
A10: 2 | B10: 1 | C10: 0.012 | D10: 0.0152 | E10: -4.422848629 | F10: -4.186459851
A11: 3 | B11: 1 | C11: 0.01 | D11: 0.0238 | E11: -4.605170186 | F11: -3.738069698
A12: 4 | B12: 1 | C12: 0.008 | D12: 0.0212 | E12: -4.828313737 | F12: -3.853754097
A13: 5 | B13: 1 | C13: 0.006 | D13: 0.019 | E13: -5.11599581 | F13: -3.9633163
A14: 6 | B14: 1 | C14: -1 | D14: -1
A15: 7 | B15: 1 | C15: -1 | D15: -1
K16: GP | L16: OP
A17: Notes: | K17: =COUNT(E9:E15) -> 5 | L17: =COUNT(F9:F15) -> 5 | M17: No. measurements
A18: Strategy 2 assumes sampling for day at a minimum of five sites. | K18: =AVERAGE(E9:E15) -> -4.854129146 | L18: =AVERAGE(F9:F15) -> -4.013827679 | M18: Mean of site means, on natural log scale*
A19: * These quantitites are defined above equation B-3 in the Best Practices document | K19: =STDEV(E9:E15) -> 0.3586527597 | L19: =STDEV(F9:F15) -> 0.2410569068 | M19: Standard deviation of site mean, on natural log scale*
A20: ** These terms are defined the analysis of example data section of the Best Practices document | J20: df1 | K20: =K17-1 -> 4 | L20: =L17-1 -> 4 | M20: Degrees of freedom for sites*
K21: =K18+0.5*K19*K19 -> -4.789813245 | L21: =L18+0.5*L19*L19 -> -3.984773463 | M21: Term1**
K22: =(K19*TINV(0.1,K20)/SQRT(K17))^2 -> 0.1169204095 | L22: =(L19*TINV(0.1,L20)/SQRT(L17))^2 -> 0.05281790035 | M22: Term2**
K23: =0.5^2*K19^4*(K20/_xlfn.CHISQ.INV.RT(1-0.05,K20)-1)^2 -> 0.08860063632 | L23: =0.5^2*L19^4*(L20/_xlfn.CHISQ.INV.RT(1-0.05,L20)-1)^2 -> 0.01808083367 | M23: Term3**
J24: UCL2 | K24: =K21+SQRT(K22+K23) -> -4.336468954 | L24: =L21+SQRT(L22+L23) -> -3.718505301 | M24: Natural logarithm of upper confidence limit (equation B-3)
J25: UCLM | K25: =EXP(K24) -> 0.01308264215 | L25: =EXP(L24) -> 0.02427021741 | M25: Upper confidence limit (MOVER method) (equation B-4)

Sheet BLANK Strategy 1
A1: Strategy 1 - Balanced:
A2: User instructions:
A3: Enter silica concentration data in columns C (GP=Ground person) and D (OP=Operator) (RED cells).
A4: If there are no data for a day at a site, then enter as "-1" (missing).
A5: If there are no data for a particular site, then "-1" is entered for all three days at the site.
A6: The 95% upper confidence limits are computed at the bottom of the worksheet in Cells M43 (Ground person) and N43 (Operator).
C8: Silica Conc. (mg/m3) | E8: ln(measurement) | G8: No. measurements | I8: Site mean | K8: Degrees of freedom | M8: Within site variance
A9: Site | B9: Day | C9: GP | D9: OP | E9: GP | F9: OP | G9: GP | H9: OP | I9: GP | J9: OP | K9: GP | L9: OP | M9: GP | N9: OP
A10: 1 | B10: 1 | C10: -1 | D10: -1 | E10: =IF(C10>0,LN(C10)," ") ->  | F10: =IF(D10>0,LN(D10)," ") ->  | G10: =COUNT(E10:E12) -> 0 | H10: =COUNT(F10:F12) -> 0 | I10: =IF(G10>0,AVERAGE(E10:E12)," ") ->  | J10: =IF(H10>0,AVERAGE(F10:F12)," ") ->  | K10: =IF(G10>1,G10-1,0) -> 0 | L10: =IF(H10>1,H10-1,0) -> 0 | M10: =IF(K10>0,VAR(E10:E12)," ") ->  | N10: =IF(L10>0,VAR(F10:F12)," ") -> 
A11: 1 | B11: 2 | C11: -1 | D11: -1
A12: 1 | B12: 3 | C12: -1 | D12: -1
A13: 2 | B13: 1 | C13: -1 | D13: -1 | G13: =COUNT(E13:E15) -> 0 | H13: =COUNT(F13:F15) -> 0 | I13: =IF(G13>0,AVERAGE(E13:E15)," ") ->  | J13: =IF(H13>0,AVERAGE(F13:F15)," ") ->  | K13: =IF(G13>1,G13-1,0) -> 0 | L13: =IF(H13>1,H13-1,0) -> 0 | M13: =IF(K13>0,VAR(E13:E15)," ") ->  | N13: =IF(L13>0,VAR(F13:F15)," ") -> 
A14: 2 | B14: 2 | C14: -1 | D14: -1
A15: 2 | B15: 3 | C15: -1 | D15: -1
A16: 3 | B16: 1 | C16: -1 | D16: -1 | G16: =COUNT(E16:E18) -> 0 | H16: =COUNT(F16:F18) -> 0 | I16: =IF(G16>0,AVERAGE(E16:E18)," ") ->  | J16: =IF(H16>0,AVERAGE(F16:F18)," ") ->  | K16: =IF(G16>1,G16-1,0) -> 0 | L16: =IF(H16>1,H16-1,0) -> 0 | M16: =IF(K16>0,VAR(E16:E18)," ") ->  | N16: =IF(L16>0,VAR(F16:F18)," ") -> 
A17: 3 | B17: 2 | C17: -1 | D17: -1
A18: 3 | B18: 3 | C18: -1 | D18: -1
A19: 4 | B19: 1 | C19: -1 | D19: -1 | G19: =COUNT(E19:E21) -> 0 | H19: =COUNT(F19:F21) -> 0 | I19: =IF(G19>0,AVERAGE(E19:E21)," ") ->  | J19: =IF(H19>0,AVERAGE(F19:F21)," ") ->  | K19: =IF(G19>0,G19-1,0) -> 0 | L19: =IF(H19>0,H19-1,0) -> 0 | M19: =IF(K19>0,VAR(E19:E21)," ") ->  | N19: =IF(L19>0,VAR(F19:F21)," ") -> 
A20: 4 | B20: 2 | C20: -1 | D20: -1
A21: 4 | B21: 3 | C21: -1 | D21: -1
A22: 5 | B22: 1 | C22: -1 | D22: -1 | G22: =COUNT(E22:E24) -> 0 | H22: =COUNT(F22:F24) -> 0 | I22: =IF(G22>0,AVERAGE(E22:E24)," ") ->  | J22: =IF(H22>0,AVERAGE(F22:F24)," ") ->  | K22: =IF(G22>0,G22-1,0) -> 0 | L22: =IF(H22>0,H22-1,0) -> 0 | M22: =IF(K22>0,VAR(E22:E24)," ") ->  | N22: =IF(L22>0,VAR(F22:F24)," ") -> 
A23: 5 | B23: 2 | C23: -1 | D23: -1
A24: 5 | B24: 3 | C24: -1 | D24: -1
M25: GP | N25: OP
A26: Notes: | M26: =SUM(G10:G22) -> 0 | N26: =SUM(H10:H22) -> 0 | O26: No. measurements
A27: Strategy 1 assumes sampling for three days at a minimum of three sites. | L27: nsites | M27: =IF(G22>0,5,IF(G19>0,4,IF(G16>0,3,IF(G13>0,2,IF(G10>0,1,0))))) -> 0 | N27: =IF(H22>0,5,IF(H19>0,4,IF(H16>0,3,IF(H13>0,2,IF(H10>0,1,0))))) -> 0 | O27: No. sites
A28: Worksheet assumes a minimum of three sites. | L28: ndays | M28: =M26/M27 ->  | N28: =N26/N27 ->  | O28: No. days (balanced if an integer; unbalanced otherwise)
A29: The worksheet can handle strategy 1 data that is balanced (same number of days at each site) or unbalanced. | M29: =IF(G22>0,1/HARMEAN(G10:G22),IF(G19>0,1/HARMEAN(G10:G19),1/HARMEAN(G10:G16))) ->  | N29: =IF(H22>0,1/HARMEAN(H10:H22),IF(H19>0,1/HARMEAN(H10:H19),1/HARMEAN(H10:H16))) ->  | O29: nbar
A30: * These quantitites are defined above equation B-1 in the Best Practices document | M30: =1-M29 ->  | N30: =1-N29 ->  | O30: 1-nbar
A31: ** These terms are defined the analysis of example data section of the Best Practices document | M31: =AVERAGE(I10:I22) ->  | N31: =AVERAGE(J10:J22) ->  | O31: Mean of site means, on natural log scale*
A32: Additional comments are in the Unbalanced Data section of the Best Practices document | M32: =STDEV(I10:I22) ->  | N32: =STDEV(J10:J22) ->  | O32: Standard deviation of site mean, on natural log scale*
L33: df1 | M33: =M27-1 -> -1 | N33: =N27-1 -> -1 | O33: Degrees of freedom for sites*
L34: astd2ws | M34: =SUMPRODUCT(M10:M22,K10:K22)/SUM(K10:K22) ->  | N34: =SUMPRODUCT(N10:N22,L10:L22)/SUM(L10:L22) ->  | O34: Weighted average of within-site variances*
L35: astdws | M35: =SQRT(M34) ->  | N35: =SQRT(N34) ->  | O35: Within-site standard deviation*
L36: df2 | M36: =M26-M27 -> 0 | N36: =N26-N27 -> 0 | O36: Degrees of freedom for days at sites*
M37: =IF(M32*M32-M29*M34>0,SQRT(M32*M32-M29*M34),0) ->  | N37: =IF(N32*N32-N29*N34>0,SQRT(N32*N32-N29*N34),0) ->  | O37: Between-site standard deviation*
M38: =M31+0.5*M32*M32+0.5*(M30)*M35*M35 ->  | N38: =N31+0.5*N32*N32+0.5*(N30)*N35*N35 ->  | O38: Term1**
M39: =(M32*TINV(0.1,M33)/SQRT(M27))^2 ->  | N39: =(N32*TINV(0.1,N33)/SQRT(N27))^2 ->  | O39: Term2**
M40: =0.5^2*M32^4*(M33/_xlfn.CHISQ.INV.RT(1-0.05,M33)-1)^2 ->  | N40: =0.5^2*N32^4*(N33/_xlfn.CHISQ.INV.RT(1-0.05,N33)-1)^2 ->  | O40: Term3**
M41: =(0.5*(M30))^2*M35^4*(M36/_xlfn.CHISQ.INV.RT(0.05,M36)-1)^2 ->  | N41: =(0.5*(N30))^2*N35^4*(N36/_xlfn.CHISQ.INV.RT(0.05,N36)-1)^2 ->  | O41: Term4**
L42: UCL2 | M42: =M38+SQRT(M39+M40+M41) ->  | N42: =N38+SQRT(N39+N40+N41) ->  | O42: Natural logarithm of upper confidence limit (equation B-1)
L43: UCLM | M43: =EXP(M42) ->  | N43: =EXP(N42) ->  | O43: Upper confidence limit (MOVER method) (equation B-2)

Sheet BLANK Strategy 2
A1: Strategy 2:
A2: User instructions:
A3: Enter silica concentration data in columns C (GP=Ground person) and D (OP=Operator) (RED cells).
A4: If there are no data for a particular site, then "-1" is entered.
A5: The 95% upper confidence limits are computed at the bottom of the worksheet in Cells K25 (Ground person) and L25 (Operator).
C7: Silica Conc. (mg/m3) | E7: ln(measurement)
A8: Site | B8: Day | C8: GP | D8: OP | E8: GP | F8: OP
A9: 1 | B9: 1 | C9: -1 | D9: -1 | E9: =IF(C9>0,LN(C9)," ") -> 
A10: 2 | B10: 1 | C10: -1 | D10: -1
A11: 3 | B11: 1 | C11: -1 | D11: -1
A12: 4 | B12: 1 | C12: -1 | D12: -1
A13: 5 | B13: 1 | C13: -1 | D13: -1
A14: 6 | B14: 1 | C14: -1 | D14: -1
A15: 7 | B15: 1 | C15: -1 | D15: -1
K16: GP | L16: OP
A17: Notes: | K17: =COUNT(E9:E15) -> 0 | L17: =COUNT(F9:F15) -> 0 | M17: No. measurements
A18: Strategy 2 assumes sampling for day at a minimum of five sites. | K18: =AVERAGE(E9:E15) ->  | L18: =AVERAGE(F9:F15) ->  | M18: Mean of site means, on natural log scale*
A19: * These quantitites are defined above equation B-3 in the Best Practices document | K19: =STDEV(E9:E15) ->  | L19: =STDEV(F9:F15) ->  | M19: Standard deviation of site mean, on natural log scale*
A20: ** These terms are defined the analysis of example data section of the Best Practices document | J20: df1 | K20: =K17-1 -> -1 | L20: =L17-1 -> -1 | M20: Degrees of freedom for sites*
K21: =K18+0.5*K19*K19 ->  | L21: =L18+0.5*L19*L19 ->  | M21: Term1**
K22: =(K19*TINV(0.1,K20)/SQRT(K17))^2 ->  | L22: =(L19*TINV(0.1,L20)/SQRT(L17))^2 ->  | M22: Term2**
K23: =0.5^2*K19^4*(K20/_xlfn.CHISQ.INV.RT(1-0.05,K20)-1)^2 ->  | L23: =0.5^2*L19^4*(L20/_xlfn.CHISQ.INV.RT(1-0.05,L20)-1)^2 ->  | M23: Term3**
J24: UCL2 | K24: =K21+SQRT(K22+K23) ->  | L24: =L21+SQRT(L22+L23) ->  | M24: Natural logarithm of upper confidence limit (equation B-3)
J25: UCLM | K25: =EXP(K24) ->  | L25: =EXP(L24) ->  | M25: Upper confidence limit (MOVER method) (equation B-4)
